fUST/lending_fUST_20240102
["ID","MTS","AMOUNT","RATE_DAILY","PERIOD"]
[309852727,1704201035904,-944.58,0.00043287,3]
[309852728,1704201035914,-500.0,0.00043287,15]
[309852729,1704201035924,-944.58,0.00043424,3]
[309852730,1704201035933,-1500.0,0.000435,3]
[309852731,1704201035943,-944.58,0.00043561,3]
[309852732,1704201035952,-500.0,0.00043561,15]
[309852733,1704201035962,-944.58,0.00043698,3]
[309852734,1704201035972,-944.58,0.00043835,3]
[309852735,1704201035982,-500.0,0.00043835,15]
[309852736,1704201035992,-250.0,0.00043835,10]
[309852737,1704201036002,-944.58,0.00043972,3]
[309852738,1704201036013,-245.82956264,0.00044,2]
[309852739,1704201036022,-300.0,0.00044102,30]
[309852740,1704201036032,-944.58,0.00044109,3]
[309852741,1704201036042,-500.0,0.00044109,15]
[309852742,1704201036051,-944.75,0.00044246,3]
[309852743,1704201036060,-150.84915085,0.0004437,4]
[309852744,1704201036070,-500.0,0.00044383,15]
[309852745,1704201036079,-910.0,0.00044603,7]
[309852746,1704201036089,-500.0,0.00044657,15]
[309852747,1704201036098,-5000.0,0.00044695,4]
[309852748,1704201036108,-755.29951037,0.0004486,10]
[309852749,1704201036117,-8273.46116606,0.000449,6]
[309852750,1704201036126,-500.0,0.00044931,15]
[309852751,1704201036136,-172.0,0.00044968,60]
[309852752,1704201036146,-172.0,0.00044969,60]
[309852753,1704201036155,-150.0,0.0004497,60]
[309852754,1704201036164,-172.0,0.00044978,60]
[309852755,1704201036174,-172.0,0.00044979,60]
[309852756,1704201036183,-172.0,0.00044979,60]
[309852757,1704201036193,-150.0,0.0004498,60]
[309852758,1704201036203,-172.0,0.00044988,60]
[309852759,1704201036213,-172.0,0.00044989,60]
[309852760,1704201036223,-172.0,0.00044989,60]
[309852761,1704201036233,-150.0,0.0004499,60]
[309852762,1704201036242,-1611.54186864,0.00044996,2]
[309852763,1704201036252,-687.66442109,0.00044998,5]
[309852764,1704201036328,-4755.57311058,0.00044998,2]
[309852765,1704201036338,-23250.17387067,0.00044998,2]
[309852766,1704201036348,-731.93705695,0.00044998,4]
[309852767,1704201036356,-192.03732797,0.00044998,4]
[309852768,1704201036366,-17163.55546844,0.00044998,4]
[309852769,1704201036375,-290.35547366,0.00044998,4]
[309852770,1704201036384,-189.90135076,0.00044998,2]
[309852771,1704201036394,-13541.87381011,0.00044998,2]
[309852772,1704201036402,-3387.24272818,0.00044998,7]
[309852773,1704201036411,-168.75641665,0.00044998,4]
[309852774,1704201036421,-5223.84631874,0.00044998,4]
[309852775,1704201036430,-155.18704014,0.00044998,2]
[309852776,1704201036439,-264.60655106,0.00044998,4]
[309852777,1704201036449,-6451.70128216,0.00044998,4]
[309852778,1704201036458,-3080.15757694,0.00045,7]
[309852852,1704201038280,-3909.56,0.0004499,3]
[309852854,1704201038290,-630.61856212,0.00044999,4]
[309852856,1704201038299,-447.02761688,0.00044999,4]
[309852858,1704201038308,-416.75601507,0.00044999,4]
[309852860,1704201038317,-378.37113727,0.00044999,7]
[309852862,1704201038326,-191.58326438,0.00044999,7]
[309852864,1704201038335,-250.05360904,0.00044999,7]
[309852866,1704201038345,-188011.37247113,0.00045,7]
[309852868,1704201038359,-4055.80999999,0.00045,7]
[309852926,1704201040985,-1401.49993163,0.00045,7]
[309852991,1704201042854,-1072.76668857,0.00045,7]
[309853001,1704201045828,-160.0,0.00044999,4]
[309853002,1704201045841,-149.84507746,0.00045,7]
[309853003,1704201046041,-8434.3876818,0.00045,7]
[309853004,1704201046056,-570461.0382422,0.00045,7]
[309853005,1704201046067,-15000.0,0.00045,30]
[309853006,1704201046078,-46395.63671146,0.00045,60]
[309853007,1704201046089,-154.9835432,0.00045,10]
[309853008,1704201046101,-1166.68364489,0.00045,15]
[309853009,1704201046112,-282.99329899,0.00045,4]
[309853010,1704201046124,-154.84515485,0.00045,14]
[309853012,1704201046137,-999.68,0.00045,15]
[309853015,1704201046149,-9730.76235972,0.00045,60]
[309853017,1704201046162,-3001.03422057,0.00045,4]
[309853019,1704201046174,-1837.17787175,0.00045,120]
[309853021,1704201046186,-687.0,0.00045,120]
[309853024,1704201046198,-2000.0,0.00045019,120]
[309853026,1704201046210,-500.0,0.00045205,15]
[309853028,1704201046219,-500.0,0.00045205,10]
[309853030,1704201046229,-151.0,0.00045213,30]
[309853032,1704201046241,-150.84915085,0.00045276,2]
[309853034,1704201046251,-910.0,0.00045288,14]
[309853036,1704201046262,-160.0,0.00045306,4]
[309853038,1704201046273,-238.0,0.00045406,2]
[309853040,1704201046284,-500.0,0.00045479,15]
[309853041,1704201046295,-1000.0,0.000456,7]
[309853042,1704201046306,-153.0,0.00045724,2]
[309853043,1704201046317,-153.0,0.00045724,2]
[309853044,1704201046327,-153.0,0.00045724,2]
[309853045,1704201046337,-153.0,0.00045724,2]
[309853046,1704201046347,-153.0,0.00045724,2]
[309853047,1704201046357,-153.0,0.00045724,2]
[309853048,1704201046367,-153.0,0.00045724,2]
[309853049,1704201046377,-153.0,0.00045724,2]
[309853050,1704201046387,-153.0,0.00045724,2]
[309853051,1704201046397,-153.0,0.00045724,2]
[309853052,1704201046407,-153.0,0.00045724,2]
[309853053,1704201046417,-153.0,0.00045724,2]
[309853054,1704201046427,-153.0,0.00045724,2]
[309853055,1704201046438,-153.0,0.00045724,2]
[309853057,1704201046448,-153.0,0.00045724,2]
[309853059,1704201046458,-153.0,0.00045724,2]
[309853062,1704201046469,-153.0,0.00045724,2]
[309853064,1704201046479,-153.0,0.00045724,2]
[309853066,1704201046489,-153.0,0.00045724,2]
[309853068,1704201046500,-637.30923883,0.00045753,15]
[309853070,1704201046511,-3672.35175362,0.00045799,30]
[309853072,1704201046521,-1000.0,0.000458,7]
[309853074,1704201046532,-1006.5,0.000458,7]
[309853077,1704201046543,-280.22661386,0.0004585,2]
[309853079,1704201046554,-910.0,0.00045973,15]
[309853081,1704201046564,-221.39379754,0.0004599,4]
[309853082,1704201046574,-52616.43262322,0.00046,30]
[309853084,1704201046583,-10755.71089689,0.00046,2]
[309853086,1704201046592,-309.59752322,0.00046071,4]
[309853088,1704201046602,-1200.0,0.00046071,4]
[309853089,1704201046611,-2000.0,0.00046098,30]
[309853091,1704201046620,-2000.0,0.00046098,30]
[309853093,1704201046629,-3000.0,0.00046109,4]
[309853094,1704201046638,-160.0,0.00046268,5]
[309853097,1704201046736,-181.23,0.00046336,60]
[309853098,1704201046747,-172.0,0.00046346,60]
[309853099,1704201046757,-250.0,0.00046349,28]
[309853100,1704201046766,-859.05182,0.00046356,7]
[309853101,1704201046776,-859.05182,0.00046356,7]
[309853102,1704201046787,-859.05182,0.00046356,7]
[309853103,1704201046797,-859.05182,0.00046356,7]
[309853104,1704201046806,-859.05182,0.00046356,7]
[309853105,1704201046816,-859.05182,0.00046356,7]
[309853106,1704201046825,-859.05182,0.00046356,7]
[309853107,1704201046834,-859.05182,0.00046356,7]
[309853108,1704201046843,-859.05182,0.00046356,7]
[309853109,1704201046854,-859.05182,0.00046356,7]
[309853110,1704201046863,-859.05182,0.00046356,7]
[309853111,1704201046872,-859.05182,0.00046356,7]
[309853112,1704201046881,-859.05182,0.00046356,7]
[309853113,1704201046890,-859.05182,0.00046356,7]
[309853114,1704201046899,-859.05182,0.00046356,7]
[309853115,1704201046908,-859.05182,0.00046356,7]
[309853116,1704201046917,-859.05182,0.00046356,7]
[309853117,1704201046927,-859.05182,0.00046356,7]
[309853118,1704201046936,-859.05182,0.00046356,7]
[309853119,1704201046946,-859.05182372,0.00046356,7]
[309853120,1704201046955,-271.83225859,0.00046371,5]
[309853121,1704201046964,-1369.0,0.00046398,46]
[309853122,1704201046973,-438416.00898703,0.00046413,7]
[309853123,1704201803703,-649.54224,0.00039274,120]
[309853124,1704201803728,-700.91552,0.00041572,30]
[309853174,1704202231997,-1000.0,0.00037808,7]
[309853176,1704202232006,-154.84515485,0.00037808,4]
[309853177,1704202232016,-154.84515485,0.00037808,5]
[309853179,1704202232026,-282.39350699,0.00037809,2]
[309853180,1704202232037,-356.94423591,0.00037809,2]
[309853181,1704202232048,-487.15668,0.00039698,120]
[309853182,1704202232059,-190.0,0.00039866,2]
[309853184,1704202232070,-150.0,0.00041068,2]
[309853186,1704202232080,-506.33757295,0.00041095,7]
[309853187,1704202232091,-537.20078607,0.00041095,7]
[309853189,1704202232101,-532.33450474,0.00041095,7]
[309853191,1704202232111,-179.37833342,0.00041095,7]
[309853192,1704202232122,-500.0,0.00041095,7]
[309853194,1704202232132,-500.0,0.00041095,7]
[309853195,1704202232141,-500.0,0.00041095,7]
[309853196,1704202232151,-500.0,0.00041095,7]
[309853197,1704202232161,-500.0,0.00041095,7]
[309853198,1704202232171,-500.0,0.00041095,7]
[309853199,1704202232181,-500.0,0.00041095,7]
[309853201,1704202232191,-500.0,0.00041095,7]
[309853202,1704202232201,-500.0,0.00041095,7]
[309853203,1704202232211,-500.0,0.00041095,7]
[309853204,1704202232221,-500.0,0.00041095,7]
[309853205,1704202232231,-500.0,0.00041095,7]
[309853206,1704202232241,-500.0,0.00041095,7]
[309853207,1704202232251,-500.0,0.00041095,7]
[309853208,1704202232260,-201.76870135,0.00041095,7]
[309853209,1704202232270,-500.0,0.00041095,7]
[309853210,1704202232280,-500.0,0.00041095,7]
[309853211,1704202232291,-293.95122968,0.00041095,7]
[309853212,1704202232302,-500.0,0.00041232,7]
[309853213,1704202232312,-500.0,0.00041232,7]
[309853214,1704202232322,-500.0,0.00041232,7]
[309853215,1704202232332,-575.82692293,0.00041232,7]
[309853216,1704202232342,-500.0,0.00041232,7]
[309853217,1704202232351,-387.36,0.00041232,7]
[309853218,1704202232362,-500.0,0.00041232,7]
[309853219,1704202232373,-500.0,0.00041232,7]
[309853220,1704202232384,-500.0,0.00041232,7]
[309853221,1704202232393,-551.64755619,0.00041232,7]
[309853222,1704202232403,-500.0,0.00041232,7]
[309853223,1704202232413,-500.0,0.00041232,7]
[309853224,1704202232423,-500.0,0.00041232,7]
[309853225,1704202232433,-500.0,0.00041232,7]
[309853226,1704202232443,-1452.94721261,0.00041364,10]
[309853227,1704202232453,-500.0,0.00041369,7]
[309853228,1704202232463,-500.0,0.00041369,7]
[309853229,1704202232473,-500.0,0.00041369,7]
[309853230,1704202232483,-405.42,0.00041369,7]
[309853231,1704202232493,-325.12,0.00041369,7]
[309853232,1704202232503,-500.0,0.00041369,7]
[309853233,1704202232514,-500.0,0.00041369,7]
[309853234,1704202232524,-192.17,0.00041369,7]
[309853235,1704202232534,-500.0,0.00041369,7]
[309853236,1704202232545,-500.0,0.00041369,7]
[309853237,1704202232556,-414.90548516,0.00041506,7]
[309853238,1704202232566,-556.63240373,0.00041506,7]
[309853239,1704202232577,-500.0,0.00041506,7]
[309853240,1704202232588,-500.0,0.00041506,7]
[309853241,1704202232599,-500.0,0.00041506,7]
[309853242,1704202232611,-5996.21,0.00041642,3]
[309853243,1704202232620,-500.0,0.00041643,7]
[309853244,1704202232629,-500.0,0.00041643,7]
[309853245,1704202232640,-500.0,0.00041643,7]
[309853246,1704202232653,-500.0,0.00041651,7]
[309853247,1704202232663,-500.0,0.00041651,7]
[309853248,1704202232676,-258.86863823,0.00041651,7]
[309853249,1704202232686,-500.0,0.00041651,7]
[309853250,1704202232696,-168.73677338,0.00041651,2]
[309853251,1704202232706,-506.37266901,0.00041651,7]
[309853252,1704202232717,-500.0,0.00041651,7]
[309853253,1704202232727,-500.0,0.00041651,7]
[309853254,1704202232737,-500.0,0.00041651,7]
[309853255,1704202232747,-478.59772293,0.00041651,7]
[309853256,1704202232757,-500.0,0.00041651,7]
[309853257,1704202232768,-482.69677253,0.00041651,7]
[309853258,1704202232778,-500.0,0.00041651,7]
[309853259,1704202232788,-500.0,0.00041651,7]
[309853260,1704202232798,-500.0,0.00041651,7]
[309853261,1704202232809,-500.0,0.00041651,7]
[309853262,1704202232820,-614.21,0.00041651,7]
[309853263,1704202232830,-500.0,0.00041651,7]
[309853264,1704202232842,-579.93148835,0.00041651,7]
[309853265,1704202232853,-500.0,0.00041651,7]
[309853266,1704202232864,-500.0,0.00041651,7]
[309853267,1704202232875,-500.0,0.00041651,7]
[309853268,1704202232886,-500.0,0.00041651,7]
[309853269,1704202232896,-500.0,0.00041651,7]
[309853270,1704202232906,-500.0,0.00041651,7]
[309853271,1704202232916,-500.0,0.00041651,7]
[309853272,1704202232925,-500.0,0.00041651,7]
[309853273,1704202232936,-415.2804597,0.00041651,7]
[309853274,1704202232947,-500.0,0.00041651,7]
[309853275,1704202232958,-228.62182115,0.00041651,7]
[309853276,1704202232969,-500.0,0.00041651,7]
[309853277,1704202232980,-500.0,0.00041651,7]
[309853278,1704202232991,-500.0,0.00041651,7]
[309853279,1704202233003,-500.0,0.00041651,7]
[309853280,1704202233014,-500.0,0.00041651,7]
[309853281,1704202233026,-22106.50211582,0.00041652,2]
[309853334,1704202238109,-4996.84,0.00041642,3]
[309853337,1704202238127,-500.0,0.00041651,7]
[309853340,1704202238140,-2354.43902105,0.00041652,2]
[309853342,1704202238153,-51274.18010931,0.00041652,2]
[309853344,1704202238163,-519.63978506,0.0004178,7]
[309853346,1704202238173,-500.0,0.0004178,7]
[309853348,1704202238182,-500.0,0.0004178,7]
[309853350,1704202238192,-171.20057612,0.00041788,7]
[309853352,1704202238201,-500.0,0.00041788,7]
[309853354,1704202238211,-500.0,0.00041788,7]
[309853356,1704202238221,-500.0,0.00041788,7]
[309853358,1704202238230,-502.96704102,0.00041788,7]
[309853360,1704202238240,-500.0,0.00041788,7]
[309853362,1704202238250,-153.33250031,0.00041788,7]
[309853364,1704202238260,-500.0,0.00041788,7]
[309853366,1704202238270,-500.0,0.00041788,7]
[309853368,1704202238280,-500.0,0.00041788,7]
[309853370,1704202238291,-500.0,0.00041788,7]
[309853372,1704202238301,-500.0,0.00041788,7]
[309853374,1704202238310,-500.0,0.00041788,7]
[309853376,1704202238319,-500.0,0.00041788,7]
[309853378,1704202238329,-500.0,0.00041788,7]
[309853380,1704202238339,-500.0,0.00041788,7]
[309853382,1704202238348,-500.0,0.00041788,7]
[309853383,1704202238358,-500.0,0.00041788,7]
[309853384,1704202238367,-1567.38708541,0.00041868,4]
[309853385,1704202238378,-166.70240604,0.00041868,4]
[309853386,1704202238387,-486.43087524,0.00041868,4]
[309853387,1704202238397,-208.4703751,0.00041868,7]
[309853388,1704202238407,-500.0,0.00041868,7]
[309853389,1704202238416,-633.80437179,0.00041868,7]
[309853390,1704202238426,-16136.95817242,0.00041869,7]
[309853391,1704202238461,-649.5326665,0.00041869,7]
[309853392,1704202238473,-516366.75800528,0.00041869,7]
[309853457,1704202241201,-312.42202287,0.00041651,7]
[309853459,1704202241211,-2235.54928545,0.00041869,7]
[309853664,1704202242985,-2445.00017428,0.00041869,7]
[309853672,1704202243045,-3251.3400126,0.00041869,7]
[309853674,1704202243057,-1135.0,0.00041869,7]
[309853966,1704202245933,-765.87238936,0.00041868,7]
[309853973,1704202245989,-234.12761064,0.00041868,7]
[309853975,1704202245999,-1434.60916274,0.00041869,7]
[309853978,1704202246011,-9544.6750448,0.00041869,7]
[309853980,1704202246023,-16649.55575039,0.00041869,7]
[309853995,1704202246150,-3146.51482312,0.00041869,7]
[309853997,1704202246163,-1739.04136674,0.00041869,7]
[309863904,1704203433523,-154.82968734,0.00037648,5]
[309863906,1704203433532,-1000.0,0.00037649,7]
[309863908,1704203433541,-2100.0,0.00037809,2]
[309863910,1704203433552,-152.9761011,0.00037809,2]
[309863912,1704203433561,-150.0,0.00039769,2]
[309863913,1704203433571,-365.36751,0.00040092,120]
[309863915,1704203433581,-160.0,0.00040335,2]
[309863917,1704203433590,-289.0,0.00041616,2]
[309863919,1704203433600,-500.0,0.00041651,7]
[309863921,1704203433610,-500.0,0.00041651,7]
[309863923,1704203433621,-500.0,0.00041651,7]
[309863925,1704203433630,-500.0,0.00041651,7]
[309863927,1704203433639,-500.0,0.00041651,7]
[309863929,1704203433649,-500.0,0.00041651,7]
[309863930,1704203433658,-346.16853984,0.00041651,7]
[309863932,1704203433667,-500.0,0.00041651,7]
[309863934,1704203433677,-500.0,0.00041651,7]
[309863945,1704203433789,-500.0,0.00041651,2]
[309863946,1704203433800,-500.0,0.00041651,7]
[309863947,1704203433810,-500.0,0.00041651,7]
[309863948,1704203433819,-500.0,0.00041651,7]
[309863949,1704203433829,-500.0,0.00041651,7]
[309863950,1704203433839,-500.0,0.00041651,7]
[309863951,1704203433848,-500.0,0.00041651,7]
[309863952,1704203433858,-500.0,0.00041651,7]
[309863953,1704203433867,-500.0,0.00041651,7]
[309863954,1704203433876,-500.0,0.00041651,7]
[309863955,1704203433886,-500.0,0.00041651,7]
[309863956,1704203433895,-500.0,0.00041651,7]
[309863957,1704203433904,-500.0,0.00041651,7]
[309863958,1704203433915,-500.0,0.00041651,7]
[309863959,1704203433925,-500.0,0.00041651,7]
[309863960,1704203433935,-500.0,0.00041651,7]
[309863961,1704203433945,-500.0,0.00041651,7]
[309863962,1704203433956,-500.0,0.00041651,7]
[309863963,1704203433966,-500.0,0.00041651,7]
[309863964,1704203433976,-500.0,0.00041651,7]
[309863965,1704203433986,-1166.23,0.00041651,7]
[309863966,1704203433997,-500.0,0.00041651,7]
[309863967,1704203434007,-500.0,0.00041651,7]
[309863968,1704203434017,-500.0,0.00041651,7]
[309863969,1704203434028,-461.15305261,0.00041651,7]
[309863970,1704203434037,-500.0,0.00041651,7]
[309863971,1704203434046,-500.0,0.00041651,7]
[309863972,1704203434055,-500.0,0.00041651,7]
[309863973,1704203434064,-500.0,0.00041651,7]
[309863974,1704203434075,-500.0,0.00041651,7]
[309863975,1704203434084,-500.0,0.00041651,7]
[309863976,1704203434094,-500.0,0.00041651,7]
[309863977,1704203434104,-500.0,0.00041651,7]
[309863978,1704203434113,-174.63111248,0.00041651,7]
[309863979,1704203434123,-500.0,0.00041651,7]
[309863980,1704203434132,-500.0,0.00041651,7]
[309863981,1704203434142,-500.0,0.00041651,7]
[309863982,1704203434153,-500.0,0.00041651,7]
[309863983,1704203434162,-500.0,0.00041651,7]
[309863984,1704203434171,-500.0,0.00041651,7]
[309863985,1704203434180,-500.0,0.00041651,7]
[309863986,1704203434190,-500.0,0.00041651,7]
[309863987,1704203434199,-260.7651293,0.00041651,7]
[309863988,1704203434208,-500.0,0.00041651,7]
[309863989,1704203434218,-1452.80209204,0.0004166,10]
[309863990,1704203434228,-14488.82040095,0.00041769,2]
[309863991,1704203434237,-3280.46,0.00041778,3]
[309863992,1704203434246,-3617.29,0.00041778,3]
[309863993,1704203434255,-500.0,0.00041787,7]
[309863994,1704203434265,-500.0,0.00041787,7]
[309863995,1704203434274,-303.48,0.00041787,7]
[309863996,1704203434283,-500.0,0.00041787,7]
[309863997,1704203434292,-500.0,0.00041787,7]
[309863998,1704203434302,-500.0,0.00041787,7]
[309863999,1704203434312,-500.0,0.00041787,7]
[309864000,1704203434321,-500.0,0.00041787,7]
[309864001,1704203434331,-500.0,0.00041787,7]
[309864002,1704203434340,-500.0,0.00041787,7]
[309864003,1704203434350,-500.0,0.00041787,7]
[309864004,1704203434359,-500.0,0.00041787,7]
[309864005,1704203434369,-500.0,0.00041787,7]
[309864006,1704203434378,-500.0,0.00041787,7]
[309864007,1704203434387,-500.0,0.00041787,7]
[309864008,1704203434397,-500.0,0.00041787,7]
[309864009,1704203434406,-500.0,0.00041787,7]
[309864010,1704203434415,-1114.16,0.00041787,3]
[309864011,1704203434425,-500.0,0.00041787,7]
[309864012,1704203434434,-500.0,0.00041787,7]
[309864013,1704203434444,-639.68,0.00041787,7]
[309864014,1704203434453,-500.0,0.00041787,7]
[309864015,1704203434464,-500.0,0.00041788,7]
[309864016,1704203434473,-500.0,0.00041788,7]
[309864017,1704203434483,-500.0,0.00041788,7]
[309864018,1704203434493,-500.0,0.00041788,7]
[309864019,1704203434503,-500.0,0.00041788,7]
[309864020,1704203434512,-500.0,0.00041788,7]
[309864021,1704203434521,-500.0,0.00041788,7]
[309864022,1704203434531,-500.0,0.00041788,2]
[309864023,1704203434541,-500.0,0.00041788,7]
[309864024,1704203434551,-500.0,0.00041788,7]
[309864025,1704203434560,-500.0,0.00041788,7]
[309864026,1704203434570,-500.0,0.00041788,7]
[309864027,1704203434580,-500.0,0.00041788,7]
[309864028,1704203434589,-500.0,0.00041788,7]
[309864029,1704203434599,-500.0,0.00041788,7]
[309864030,1704203434609,-500.0,0.00041788,7]
[309864031,1704203434618,-501.52059167,0.00041788,7]
[309864032,1704203434627,-500.0,0.00041788,7]
[309864033,1704203434636,-500.0,0.00041788,7]
[309864034,1704203434645,-500.0,0.00041788,7]
[309864035,1704203434655,-500.0,0.00041788,7]
[309864036,1704203434664,-500.0,0.00041788,7]
[309864037,1704203434674,-500.0,0.00041788,7]
[309864038,1704203434683,-500.0,0.00041788,7]
[309864039,1704203434692,-500.0,0.00041788,7]
[309864040,1704203434702,-500.0,0.00041788,7]
[309864041,1704203434711,-500.0,0.00041788,7]
[309864042,1704203434721,-1166.23,0.00041788,7]
[309864043,1704203434731,-500.0,0.00041788,7]
[309864044,1704203434741,-500.0,0.00041788,7]
[309864045,1704203434751,-208.07891422,0.00041788,7]
[309864046,1704203434760,-645.2006493,0.00041788,7]
[309864047,1704203434771,-500.0,0.00041788,7]
[309864048,1704203434781,-500.0,0.00041788,7]
[309864049,1704203434790,-578.27322606,0.00041788,7]
[309864050,1704203434800,-500.0,0.00041788,7]
[309864051,1704203434809,-500.0,0.00041788,7]
[309864052,1704203434819,-500.0,0.00041788,7]
[309864053,1704203434828,-441.9383178,0.00041788,7]
[309864054,1704203434838,-500.0,0.00041788,7]
[309864055,1704203434847,-500.0,0.00041788,7]
[309864056,1704203434858,-399.77807248,0.00041788,7]
[309864057,1704203434867,-500.0,0.00041788,7]
[309864058,1704203434878,-500.0,0.00041788,7]
[309864059,1704203434887,-500.0,0.00041788,7]
[309864060,1704203434897,-500.0,0.00041788,7]
[309864061,1704203434906,-500.0,0.00041788,7]
[309864062,1704203434915,-260.65031562,0.00041867,4]
[309864063,1704203434925,-1049.42753666,0.00041867,7]
[309864064,1704203434943,-416.74663729,0.00041867,7]
[309864065,1704203434957,-500.0,0.00041867,7]
[309864066,1704203434968,-309.5202444,0.00041868,30]
[309864067,1704203434977,-2993.04367632,0.00041868,4]
[309864068,1704203434987,-500.0,0.00041868,7]
[309864069,1704203434997,-500.0,0.00041868,7]
[309864070,1704203435006,-500.0,0.00041868,7]
[309864071,1704203435016,-500.0,0.00041868,4]
[309864072,1704203435026,-402902.02771561,0.00041869,7]
[309864073,1704203435037,-500.0,0.00041924,7]
[309864074,1704203435047,-500.0,0.00041924,7]
[309864075,1704203435057,-500.0,0.00041924,7]
[309864076,1704203435068,-500.0,0.00041924,7]
[309864077,1704203435078,-161.13,0.00041924,7]
[309864078,1704203435089,-500.0,0.00041924,7]
[309864079,1704203435099,-299.76937035,0.00041924,7]
[309864080,1704203435108,-500.0,0.00041924,7]
[309864081,1704203435118,-500.0,0.00041924,7]
[309864082,1704203435128,-385.39,0.00041924,7]
[309864083,1704203435138,-500.0,0.00041924,7]
[309864084,1704203435151,-500.0,0.00041924,7]
[309864085,1704203435161,-292.7706214,0.00041924,7]
[309864086,1704203435171,-500.0,0.00041924,7]
[309864087,1704203435182,-500.0,0.00041924,7]
[309864088,1704203435194,-249.20380216,0.00041924,7]
[309864089,1704203435204,-1114.16,0.00041924,3]
[309864090,1704203435214,-500.0,0.00041924,7]
[309864091,1704203435223,-500.0,0.00041924,7]
[309864092,1704203435234,-500.0,0.00041924,7]
[309864093,1704203435244,-500.0,0.00041925,7]
[309864094,1704203435254,-500.0,0.00041925,7]
[309864095,1704203435264,-500.0,0.00041925,7]
[309864096,1704203435273,-500.0,0.00041925,7]
[309864097,1704203435283,-500.0,0.00041925,7]
[309864098,1704203435293,-500.0,0.00041925,7]
[309864099,1704203435304,-500.0,0.00041925,7]
[309864100,1704203435314,-542.04898534,0.00041925,2]
[309864101,1704203435324,-500.0,0.00041925,7]
[309864102,1704203435334,-500.0,0.00041925,7]
[309864103,1704203435344,-500.0,0.00041925,7]
[309864104,1704203435354,-500.0,0.00041925,7]
[309864105,1704203435363,-500.0,0.00041925,7]
[309864106,1704203435373,-500.0,0.00041925,7]
[309864107,1704203435383,-244.24354307,0.00041925,7]
[309864108,1704203435392,-500.0,0.00041925,7]
[309864109,1704203435402,-500.0,0.00041925,7]
[309864110,1704203435412,-500.0,0.00041925,7]
[309864111,1704203435421,-500.0,0.00041925,7]
[309864112,1704203435431,-500.0,0.00041925,7]
[309864113,1704203435441,-500.0,0.00041925,7]
[309864114,1704203435451,-500.0,0.00041925,7]
[309864115,1704203435461,-500.0,0.00041925,7]
[309864116,1704203435471,-500.0,0.00041925,7]
[309864117,1704203435481,-500.0,0.00041925,7]
[309864118,1704203435490,-276.11045806,0.00041925,7]
[309864119,1704203435500,-1166.23,0.00041925,7]
[309864120,1704203435510,-500.0,0.00041925,7]
[309864121,1704203435520,-500.0,0.00041925,7]
[309864122,1704203435530,-521.68662726,0.00041925,7]
[309864123,1704203435539,-500.0,0.00041925,7]
[309864124,1704203435549,-500.0,0.00041925,7]
[309864125,1704203435558,-500.0,0.00041925,7]
[309864126,1704203435568,-419.09229144,0.00041925,7]
[309864127,1704203435578,-500.0,0.00041925,7]
[309864128,1704203435588,-500.0,0.00041925,7]
[309864129,1704203435598,-518.96115803,0.00041925,7]
[309864130,1704203435608,-500.0,0.00041925,7]
[309864131,1704203435619,-500.0,0.00041925,7]